[Event "GER-ch Youth-U12 2024"]
[Site "Willingen"]
[Date "2024.05.25"]
[Round "9"]
[White "Stehning, Toni"]
[Black "Bundan, Edward"]
[Result "0-1"]
[ECO "B33"]
[WhiteElo "1821"]
[BlackElo "1897"]
[Annotator "NA RC"]
[PlyCount "96"]
[EventDate "2022.06.05"]
[EventType "swiss"]
[EventRounds "9"]
[EventCountry "GER"]
[SourceTitle "playchess.com"]
[Source "ChessBase"]
[SourceQuality "1"]
[TimeControl "40/4500+30:900+30"]

1. e4 {[%emt 0:00:00]} c5 {[%emt 0:00:00]} 2. Nf3 {[%emt 0:00:00]} Nc6 {[%emt 0:00:00]} 3. d4 {[%emt 0:00:00]} cxd4 {[%emt 0:00:00]} 4. Nxd4 {[%emt 0:00:00]} Nf6 {[%emt 0:00:00]} 5. Nc3 {[%emt 0:00:00]} e5 {[%emt 0:00:00]} 6. Ndb5 {[%emt 0:00:00]} d6 {[%emt 0:00:00]} 7. Bg5 {[%emt 0:00:00]} a6 {[%emt 0:00:00]} 8. Na3 {[%emt 0:00:00]} b5 {[%emt 0:00:23]} 9. Nd5 {[%emt 0:00:00]} Be7 {[%emt 0:00:00]} 10. Bxf6 {[%emt 0:00:00]} Bxf6 {[%emt 0:00:00]} 11. c4 {[%emt 0:00:00]} b4 {[%emt 0:00:00] B33: Sicilian: Pelikan and Sveshnikov Variations.} 12. Nc2 {[%emt 0:00:00]} O-O {[%emt 0:00:00]} 13. g3 {[%emt 0:00:00]} Rb8 {[%emt 0:00:00]} 14. Bg2 {[%emt 0:00:00]} Bg5 {[%emt 0:00:00]} 15. h4 {[%emt 0:00:00]} Bh6 {[%emt 0:00:00]} 16. g4 {[%emt 0:00:04]} g6 {[%emt 0:00:00]} 17. g5 {[%emt 0:02:34]} Bg7 {[%emt 0:00:00]} 18. Qd2 {[%emt 0:00:46]} b3 {[%emt 0:00:13]} 19. axb3 {[%emt 0:18:51]} Rxb3 {[%emt 0:00:29]} 20. Ndb4 {[%emt 0:01:44]} Nxb4 {[%emt 0:00:24]} 21. Nxb4 {[%emt 0:00:08]} Qb6 {[%emt 0:02:00]} 22. Nd5 {[%emt 0:00:43]} Qb7 {[%emt 0:02:36]} 23. Rb1 {[%emt 0:05:35]} Be6 {[%emt 0:00:57]} 24. Nf6+ {[%emt 0:18:04]} Bxf6 {[%emt 0:01:00]} 25. gxf6 {[%emt 0:00:04]} Qb4 {[%emt 0:00:24]} 26. Qxb4 {[%emt 0:04:34]} Rxb4 {[%emt 0:00:01]} 27. Kd2 {[%emt 0:01:52]} (27. O-O $17 {was worth a try.}) 27... Rxc4 {[%emt 0:01:56]} 28. Rhc1 {[%emt 0:01:31]} Rfc8 {[%emt 0:00:36]} 29. Ra1 {[%emt 0:01:45]} Rxc1 {[%emt 0:00:59]} 30. Rxc1 {[%emt 0:00:04]} Rxc1 {[%emt 0:00:30]} 31. Kxc1 {[%emt 0:00:08]} Kf8 {[%emt 0:00:05]} 32. b4 {[%emt 0:00:20]} Bc4 {[%emt 0:00:15]} 33. Kc2 {[%emt 0:02:22]} Ke8 {[%emt 0:00:18]} 34. Kc3 {[%emt 0:00:16]} Bb5 {[%emt 0:00:17]} 35. Bf3 {[%emt 0:01:05]} h5 {[%emt 0:01:58]} 36. Bg2 {[%emt 0:00:30]} Kd7 {[%emt 0:01:53]} 37. Bh3+ {[%emt 0:00:04]} Kc7 {[%emt 0:00:50]} 38. Be6 {[%emt 0:00:13]} Be8 {[%emt 0:01:49]} 39. Bc4 {[%emt 0:00:11]} Kb6 {[%emt 0:00:23]} 40. Kd2 {[%emt 0:01:04]} a5 {[%emt 0:12:24]} 41. bxa5+ {[%emt 0:15:31]} Kxa5 {[%emt 0:15:08]} 42. f4 {[%emt 0:01:02]} Kb4 {[%emt 0:00:25]} 43. Bd5 {[%emt 0:00:15]} exf4 {[%emt 0:10:35]} 44. Ke1 {[%emt 0:01:17]} Kc3 {[%emt 0:00:46]} 45. Kf2 {[%emt 0:00:06]} Kd4 {[%emt 0:00:07]} 46. Kf3 $19 {[%emt 0:01:43]} Ke5 {[%emt 0:02:48]} 47. Bc4 {[%emt 0:00:09]} Bc6 {[%emt 0:00:40]} 48. Bd3 {[%emt 0:04:02]} d5 {[%emt 0:00:19]} 0-1

[Event "GER-ch Youth-U12 2024"]
[Site "Willingen"]
[Date "2024.05.25"]
[Round "9"]
[White "Rodriguez Klasen, Ennio"]
[Black "Junge, Mattheo Gabriel"]
[Result "1/2-1/2"]
[ECO "B11"]
[WhiteElo "1802"]
[BlackElo "1817"]
[Annotator "NA RC"]
[PlyCount "58"]
[EventDate "2022.06.05"]
[EventType "swiss"]
[EventRounds "9"]
[EventCountry "GER"]
[SourceTitle "playchess.com"]
[Source "ChessBase"]
[SourceQuality "1"]
[TimeControl "40/4500+30:900+30"]

1. e4 {[%emt 0:00:00]} c6 {[%emt 0:00:00]} 2. Nf3 {[%emt 0:00:00]} d5 {[%emt 0:00:00]} 3. Nc3 {[%emt 0:00:00]} dxe4 {[%emt 0:00:00]} 4. Nxe4 {[%emt 0:00:00]} Nf6 {[%emt 0:00:00]} 5. Qe2 {[%emt 0:00:00]} Nxe4 {[%emt 0:00:00]} 6. Qxe4 {[%emt 0:00:00]} Nd7 {[%emt 0:00:00] B11: Caro-Kann: Two Knights Variation.} 7. Bc4 {[%emt 0:00:00]} Nf6 {[%emt 0:00:00]} 8. Ne5 {[%emt 0:00:00]} e6 {[%emt 0:00:00]} 9. Qe2 {[%emt 0:00:00]} Bd6 {[%emt 0:00:00]} 10. d4 {[%emt 0:00:00]} O-O {[%emt 0:00:00]} 11. Bg5 {[%emt 0:00:00]} Qa5+ {[%emt 0:00:00]} 12. Qd2 {[%emt 0:19:17]} Qxd2+ {[%emt 0:00:00]} 13. Bxd2 {[%emt 0:00:06]} c5 {[%emt 0:00:00]} 14. Nf3 {[%emt 0:06:00]} a6 {[%emt 0:00:00]} 15. a4 {[%emt 0:05:07]} b6 {[%emt 0:00:00]} 16. O-O-O {[%emt 0:07:14]} b5 {[%emt 0:01:46]} 17. Be2 {[%emt 0:11:06]} c4 {[%emt 0:00:11]} 18. c3 {[%emt 0:09:03]} Bb7 {[%emt 0:00:37]} 19. Ne5 {[%emt 0:02:38]} Bxe5 {[%emt 0:02:40]} 20. dxe5 {[%emt 0:01:38]} Nd7 {[%emt 0:00:55]} 21. Bf4 {[%emt 0:01:50]} Nb6 $11 {[%emt 0:01:01]} ({Inferior is} 21... Bxg2 22. Rhg1 Bc6 (22... Bd5 23. Bh6 $16) 23. Bh6 $14) ({Better is} 21... Nc5 $17 22. Be3 Nxa4) 22. a5 {[%emt 0:03:37]} Nd5 {[%emt 0:02:20]} 23. Bf3 {[%emt 0:02:07]} Rab8 {[%emt 0:00:40]} 24. Bxd5 {[%emt 0:00:48]} Bxd5 {[%emt 0:00:05]} 25. Be3 {[%emt 0:01:29]} Bxg2 {[%emt 0:01:57]} 26. Rhg1 {[%emt 0:00:38]} Be4 {[%emt 0:00:52]} 27. Bc5 {[%emt 0:03:35]} Rfc8 {[%emt 0:00:24]} 28. Bd6 {[%emt 0:02:07]} Rb7 {[%emt 0:01:15]} 29. Rd4 {[%emt 0:01:05]} Bf5 {[%emt 0:02:08]} 1/2-1/2

[Event "GER-ch Youth-U12 2024"]
[Site "Willingen"]
[Date "2024.05.25"]
[Round "9"]
[White "Fischermann, Simon"]
[Black "Peglau, Paul David"]
[Result "1/2-1/2"]
[ECO "D85"]
[WhiteElo "1789"]
[BlackElo "1806"]
[Annotator "NA RC"]
[PlyCount "99"]
[EventDate "2022.06.05"]
[EventType "swiss"]
[EventRounds "9"]
[EventCountry "GER"]
[SourceTitle "playchess.com"]
[Source "ChessBase"]
[SourceQuality "1"]
[TimeControl "40/4500+30:900+30"]

1. d4 {[%emt 0:00:00]} Nf6 {[%emt 0:00:00]} 2. c4 {[%emt 0:00:00]} g6 {[%emt 0:00:00]} 3. Nc3 {[%emt 0:00:00]} d5 {[%emt 0:00:00]} 4. cxd5 {[%emt 0:00:00]} Nxd5 {[%emt 0:00:00]} 5. e4 {[%emt 0:00:00]} Nxc3 {[%emt 0:00:00]} 6. bxc3 {[%emt 0:00:00]} Bg7 {[%emt 0:00:00]} 7. Ba3 {[%emt 0:00:00]} Nd7 {[%emt 0:00:00] D85: Exchange Grünfeld: Unusual White 7th moves and lines with 7 Nf3.} 8. Bc4 {[%emt 0:00:21] was the old line (8.Nf3).} c5 {[%emt 0:01:19]} 9. Ne2 {[%emt 0:04:57]} cxd4 {[%emt 0:07:54]} 10. Qb3 {[%emt 0:04:59]} Ne5 {[%emt 0:20:15]} 11. Bb5+ $146 {[%emt 0:03:39]} ({Predecessor:} 11. cxd4 Nxc4 12. Qxc4 O-O 13. O-O b6 14. Rac1 Bb7 15. f3 Bh6 16. Rc3 Rc8 17. Qd3 {½-½ Siban,M-Bonoldi,F (2112) ICCF Jubilee P165 email 2001}) 11... Bd7 {[%emt 0:05:48]} 12. cxd4 {[%emt 0:03:06]} Qa5+ {[%emt 0:16:24]} 13. Nc3 {[%emt 0:03:41]} Bxb5 {[%emt 0:02:03]} 14. Qxb5+ {[%emt 0:00:13]} Nc6 {[%emt 0:00:24]} 15. Qxa5 {[%emt 0:00:33]} Nxa5 {[%emt 0:00:01]} 16. e5 {[%emt 0:09:09]} Nc6 {[%emt 0:07:13]} 17. Rd1 {[%emt 0:03:32]} O-O-O {[%emt 0:04:30]} 18. Ne2 {[%emt 0:00:59]} Rd5 {[%emt 0:01:32]} 19. O-O {[%emt 0:02:52]} Rhd8 {[%emt 0:01:33]} 20. Rc1 {[%emt 0:02:42]} Kd7 {[%emt 0:04:34]} 21. Bc5 {[%emt 0:01:29]} Ke8 {[%emt 0:05:27]} 22. f4 {[%emt 0:02:53]} R5d7 {[%emt 0:01:04]} 23. Kf2 {[%emt 0:01:15]} e6 {[%emt 0:03:12]} 24. Ke3 {[%emt 0:00:49]} Bf8 {[%emt 0:00:34]} 25. Bxf8 {[%emt 0:06:53]} Kxf8 {[%emt 0:00:01]} 26. Rfd1 {[%emt 0:00:46]} Rd5 {[%emt 0:01:32]} 27. Rd3 {[%emt 0:04:33]} h5 {[%emt 0:02:20]} 28. h3 {[%emt 0:00:13]} Ke7 {[%emt 0:01:04]} 29. Rc4 {[%emt 0:08:43]} Kd7 {[%emt 0:00:39]} 30. Ng3 {[%emt 0:00:52]} Ra5 {[%emt 0:00:33]} 31. a4 {[%emt 0:00:56]} b5 {[%emt 0:00:29]} 32. axb5 {[%emt 0:00:28]} Rxb5 {[%emt 0:00:06]} 33. Rdc3 {[%emt 0:00:30]} Ne7 {[%emt 0:00:38]} 34. Ra3 {[%emt 0:01:46]} Nd5+ {[%emt 0:00:26]} 35. Kf3 {[%emt 0:00:30]} a5 {[%emt 0:00:44]} 36. Ne4 {[%emt 0:01:47]} Rdb8 {[%emt 0:00:27]} 37. Nc5+ {[%emt 0:01:28]} Ke7 {[%emt 0:00:19]} 38. Rca4 {[%emt 0:01:41]} Rb4 {[%emt 0:00:38]} 39. g4 {[%emt 0:07:16]} hxg4+ {[%emt 0:00:31]} 40. Kxg4 {[%emt 0:02:05]} Rxa4 {[%emt 0:00:40]} 41. Rxa4 {[%emt 0:15:50]} Rb4 {[%emt 0:00:00]} 42. Rxb4 {[%emt 0:00:00]} axb4 {[%emt 0:00:00]} 43. h4 {[%emt 0:00:00]} Ne3+ {[%emt 0:00:00]} 44. Kg5 {[%emt 0:00:00]} Nc2 {[%emt 0:00:00]} 45. Nb3 {[%emt 0:00:00]} Ne1 {[%emt 0:03:52]} 46. h5 {[%emt 0:00:00]} gxh5 {[%emt 0:00:54]} 47. Kxh5 {[%emt 0:00:00]} Nd3 {[%emt 0:05:58]} 48. Kg5 $11 {[%emt 0:00:00]} Nf2 {[%emt 0:03:12]} 49. f5 {[%emt 0:03:35]} Ne4+ {[%emt 0:02:22]} 50. Kf4 {[%emt 0:00:00]} 1/2-1/2

[Event "GER-ch Youth-U12 2024"]
[Site "Willingen"]
[Date "2024.05.25"]
[Round "9"]
[White "Yozgyur, Ediz"]
[Black "Moskalenko, Michael"]
[Result "1-0"]
[ECO "B42"]
[WhiteElo "1789"]
[BlackElo "1574"]
[Annotator "NA RC"]
[PlyCount "149"]
[EventDate "2022.06.05"]
[EventType "swiss"]
[EventRounds "9"]
[EventCountry "GER"]
[SourceTitle "playchess.com"]
[Source "ChessBase"]
[SourceQuality "1"]
[TimeControl "40/4500+30:900+30"]

1. e4 {[%emt 0:00:00]} c5 {[%emt 0:00:00]} 2. Nf3 {[%emt 0:00:00]} e6 {[%emt 0:00:00]} 3. d4 {[%emt 0:00:00]} cxd4 {[%emt 0:00:00]} 4. Nxd4 {[%emt 0:00:00]} a6 {[%emt 0:00:00]} 5. Bd3 {[%emt 0:00:00]} Bc5 {[%emt 0:00:00]} 6. Nb3 {[%emt 0:00:00]} Ba7 {[%emt 0:00:00]} 7. Nc3 {[%emt 0:00:00]} Nc6 {[%emt 0:00:15]} 8. O-O {[%emt 0:00:00]} Nf6 {[%emt 0:00:00]} 9. Be3 {[%emt 0:00:00]} Bxe3 {[%emt 0:00:00]} 10. fxe3 {[%emt 0:00:00]} Qc7 {[%emt 0:00:00]} 11. Qe1 {[%emt 0:02:28]} b5 {[%emt 0:00:00]} 12. a3 {[%emt 0:01:52]} Bb7 {[%emt 0:02:30]} 13. Nc5 {[%emt 0:03:11]} Rb8 {[%emt 0:49:09]} 14. Nxb7 {[%emt 0:01:04]} Rxb7 {[%emt 0:00:28]} 15. Qh4 {[%emt 0:01:55]} Ne5 {[%emt 0:05:32]} 16. Qg5 {[%emt 0:08:38]} Ng6 {[%emt 0:06:01]} 17. Qg3 {[%emt 0:11:02]} Qxg3 {[%emt 0:01:10]} 18. hxg3 {[%emt 0:00:10]} Ng4 {[%emt 0:00:25]} 19. Rae1 {[%emt 0:00:57]} O-O {[%emt 0:00:56]} 20. Nd1 {[%emt 0:01:15]} Rc7 {[%emt 0:03:14]} 21. Nf2 {[%emt 0:00:27]} N6e5 {[%emt 0:01:12]} 22. Nxg4 {[%emt 0:02:43]} Nxg4 {[%emt 0:00:11]} 23. Rf4 {[%emt 0:02:31]} Ne5 {[%emt 0:02:54]} 24. Ref1 {[%emt 0:02:20]} f6 {[%emt 0:01:43]} 25. a4 {[%emt 0:06:33]} bxa4 {[%emt 0:06:16]} 26. Ra1 {[%emt 0:00:18]} Nxd3 {[%emt 0:00:56]} 27. cxd3 {[%emt 0:00:08]} Rc2 {[%emt 0:05:06]} 28. Rxa4 {[%emt 0:00:11]} Rxb2 {[%emt 0:00:09]} 29. Rxa6 {[%emt 0:00:06]} Rb3 {[%emt 0:00:13]} 30. Rd6 {[%emt 0:00:08]} Rd8 {[%emt 0:00:10]} 31. e5 {[%emt 0:00:48]} f5 {[%emt 0:00:57]} 32. Rfd4 {[%emt 0:00:05]} Rb7 {[%emt 0:00:11]} 33. Rxe6 {[%emt 0:00:08]} dxe6 {[%emt 0:01:09]} 34. Rxd8+ {[%emt 0:00:07]} Kf7 {[%emt 0:00:09]} 35. Kf2 {[%emt 0:00:12]} Rb2+ {[%emt 0:00:34]} 36. Kf1 {[%emt 0:02:05]} h5 {[%emt 0:00:25]} 37. Rd7+ {[%emt 0:00:31]} Kf8 {[%emt 0:00:25]} 38. d4 {[%emt 0:01:16]} Rd2 {[%emt 0:00:22]} 39. Rc7 {[%emt 0:03:35]} Rb2 {[%emt 0:00:45]} 40. Rc1 {[%emt 0:01:23]} Kf7 {[%emt 0:01:01]} 41. Rc7+ {[%emt 0:18:32]} Kf8 {[%emt 0:15:07]} 42. Rd7 {[%emt 0:03:25]} Rd2 {[%emt 0:00:05]} 43. Ra7 {[%emt 0:03:40]} Rb2 {[%emt 0:00:13]} 44. Ra3 {[%emt 0:00:03]} Rd2 {[%emt 0:00:15]} 45. Rc3 {[%emt 0:00:20]} Kf7 {[%emt 0:00:48]} 46. Rb3 {[%emt 0:00:27]} Kf8 {[%emt 0:00:46]} 47. Kg1 {[%emt 0:00:26]} Kf7 {[%emt 0:00:26]} 48. Kh2 {[%emt 0:00:12]} Kf8 {[%emt 0:00:00]} 49. Kg1 {[%emt 0:00:00]} Kf7 {[%emt 0:00:00]} 50. Rb1 {[%emt 0:00:00]} Kf8 {[%emt 0:00:00]} 51. Kf1 {[%emt 0:00:00]} Kf7 {[%emt 0:00:00]} 52. Re1 {[%emt 0:00:00]} Ke7 {[%emt 0:04:51]} 53. Re2 {[%emt 0:00:00]} Rxe2 {[%emt 0:00:00]} 54. Kxe2 {[%emt 0:00:00]} Kd7 {[%emt 0:00:00]} 55. Kd3 {[%emt 0:00:00]} Kc6 {[%emt 0:00:00]} 56. e4 {[%emt 0:00:00]} fxe4+ {[%emt 0:00:00]} 57. Kxe4 {[%emt 0:00:00]} g5 {[%emt 0:00:00]} 58. Ke3 {[%emt 0:00:00]} Kb5 {[%emt 0:00:00]} 59. Ke4 {[%emt 0:00:00]} Kc4 {[%emt 0:00:09]} 60. Ke3 {[%emt 0:00:00]} Kb5 {[%emt 0:00:00]} 61. Kd3 {[%emt 0:00:00]} Kb6 {[%emt 0:00:00]} 62. Ke4 {[%emt 0:00:00]} Kc6 {[%emt 0:00:00]} 63. g4 {[%emt 0:00:00]} h4 {[%emt 0:00:00]} 64. d5+ {[%emt 0:00:00]} exd5+ {[%emt 0:00:00]} 65. Kd4 {[%emt 0:00:00]} Kc7 {[%emt 0:00:00]} 66. Kxd5 {[%emt 0:00:00]} Kd7 {[%emt 0:00:13]} 67. e6+ {[%emt 0:00:00]} Ke7 {[%emt 0:02:38]} 68. Ke5 {[%emt 0:00:00]} Ke8 {[%emt 0:00:07]} 69. Kf6 {[%emt 0:00:00]} Kf8 {[%emt 0:00:10]} 70. Kxg5 {[%emt 0:00:00]} Ke7 {[%emt 0:00:22]} 71. Kf5 {[%emt 0:00:11]} h3 {[%emt 0:00:06]} 72. gxh3 {[%emt 0:00:00]} Kf8 {[%emt 0:00:04]} 73. Kf6 {[%emt 0:00:00]} Kg8 {[%emt 0:00:26]} 74. e7 {[%emt 0:00:00]} Kh7 {[%emt 0:00:05]} 75. e8=Q {[%emt 0:00:00]} 1-0

[Event "GER-ch Youth-U12 2024"]
[Site "Willingen"]
[Date "2024.05.25"]
[Round "9"]
[White "Noll, Raphael"]
[Black "Fels, Mattis"]
[Result "0-1"]
[ECO "B22"]
[WhiteElo "1775"]
[BlackElo "1759"]
[Annotator "NA RC"]
[PlyCount "120"]
[EventDate "2022.06.05"]
[EventType "swiss"]
[EventRounds "9"]
[EventCountry "GER"]
[SourceTitle "playchess.com"]
[Source "ChessBase"]
[SourceQuality "1"]
[TimeControl "40/4500+30:900+30"]

1. e4 {[%emt 0:00:00]} c5 {[%emt 0:00:00]} 2. c3 {[%emt 0:00:00]} d5 {[%emt 0:00:00]} 3. exd5 {[%emt 0:00:00]} Qxd5 {[%emt 0:00:06]} 4. d4 {[%emt 0:00:00]} Nf6 {[%emt 0:00:00]} 5. Nf3 {[%emt 0:00:00]} e6 {[%emt 0:00:00]} 6. Be3 {[%emt 0:00:00]} Be7 {[%emt 0:00:00]} 7. Be2 {[%emt 0:00:00]} O-O {[%emt 0:00:00]} 8. O-O {[%emt 0:00:00]} Rd8 {[%emt 0:00:00]} 9. dxc5 {[%emt 0:00:00]} Qxd1 {[%emt 0:00:00]} 10. Rxd1 {[%emt 0:00:00]} Rxd1+ {[%emt 0:00:00]} 11. Bxd1 {[%emt 0:00:00]} Nbd7 {[%emt 0:00:00]} 12. b4 {[%emt 0:00:00]} a5 {[%emt 0:00:00]} 13. a4 {[%emt 0:00:00]} Nd5 {[%emt 0:00:00]} 14. Bd2 {[%emt 0:02:36]} N7f6 {[%emt 0:00:00]} 15. Ne5 {[%emt 0:09:22]} Ne4 {[%emt 0:00:47]} 16. Be1 {[%emt 0:04:01]} Bf6 {[%emt 0:01:29]} 17. f4 {[%emt 0:03:33]} Nxf4 {[%emt 0:01:49]} 18. Nc4 {[%emt 0:06:47]} axb4 {[%emt 0:02:57]} 19. Bf3 {[%emt 0:02:34]} Nxc5 {[%emt 0:03:30]} 20. Nb6 {[%emt 0:04:52]} Rb8 {[%emt 0:00:26]} 21. Bg3 {[%emt 0:01:42]} e5 {[%emt 0:07:36]} 22. cxb4 {[%emt 0:04:50]} Ncd3 {[%emt 0:02:05]} 23. b5 {[%emt 0:02:37]} e4 {[%emt 0:05:23]} 24. Bxe4 {[%emt 0:03:57]} Bxa1 {[%emt 0:00:25]} 25. Bxd3 {[%emt 0:01:12]} Nxd3 {[%emt 0:00:46]} 26. Bxb8 {[%emt 0:02:28]} Bd4+ {[%emt 0:01:11]} 27. Kf1 {[%emt 0:00:03]} Bxb6 {[%emt 0:00:08]} 28. Ke2 {[%emt 0:00:17]} Nc5 {[%emt 0:00:39]} 29. Nc3 {[%emt 0:00:20]} Bg4+ {[%emt 0:00:14]} 30. Kd2 {[%emt 0:00:40]} Ba5 {[%emt 0:00:15]} 31. Kc2 {[%emt 0:00:29]} Bxc3 {[%emt 0:01:07]} 32. Kxc3 {[%emt 0:00:06]} Nxa4+ {[%emt 0:00:01]} 33. Kb4 {[%emt 0:00:01]} Nb6 {[%emt 0:00:12]} 34. Ba7 {[%emt 0:00:33]} Nd7 {[%emt 0:00:30]} 35. Bd4 {[%emt 0:01:03]} f6 {[%emt 0:00:20]} 36. Kc4 {[%emt 0:00:45]} Be2+ {[%emt 0:00:24]} 37. Kb4 {[%emt 0:00:20]} Kf7 {[%emt 0:00:09]} 38. b6 {[%emt 0:00:05]} Ke6 {[%emt 0:00:10]} 39. Kc3 {[%emt 0:00:17]} Kd5 {[%emt 0:00:10]} 40. Bf2 {[%emt 0:00:17]} Kc6 {[%emt 0:00:04]} 41. Kd2 {[%emt 0:15:05]} Bf1 {[%emt 0:15:22]} 42. Ke3 {[%emt 0:00:14]} Bxg2 {[%emt 0:00:06]} 43. Kf4 {[%emt 0:00:06]} Nxb6 {[%emt 0:00:06]} 44. Kg3 {[%emt 0:00:07]} Be4 {[%emt 0:00:09]} 45. Kf4 {[%emt 0:00:05]} Bg6 {[%emt 0:00:09]} 46. h4 {[%emt 0:00:09]} Nd5+ {[%emt 0:00:03]} 47. Kf3 {[%emt 0:00:24]} b5 {[%emt 0:00:05]} 48. Ke2 {[%emt 0:00:06]} b4 {[%emt 0:00:09]} 49. Kd2 {[%emt 0:00:16]} b3 {[%emt 0:00:08]} 50. Bd4 {[%emt 0:00:02]} Kb5 {[%emt 0:00:19]} 51. Ba1 {[%emt 0:00:12]} Kc4 {[%emt 0:00:06]} 52. Bb2 {[%emt 0:00:03]} Nf4 {[%emt 0:00:22]} 53. Bc1 {[%emt 0:00:37]} Nd3 {[%emt 0:00:11]} 54. Ba3 {[%emt 0:00:04]} Kb5 {[%emt 0:00:28]} 55. Kc3 {[%emt 0:00:16]} Ka4 {[%emt 0:00:04]} 56. Bb2 {[%emt 0:00:03]} Nxb2 {[%emt 0:00:05]} 57. Kxb2 {[%emt 0:00:02]} h5 {[%emt 0:00:10]} 58. Ka1 {[%emt 0:00:06]} Be8 {[%emt 0:00:23]} 59. Kb2 {[%emt 0:00:07]} Kb4 {[%emt 0:00:09]} 60. Kb1 {[%emt 0:00:08]} Kc3 {[%emt 0:00:09]} 0-1

[Event "GER-ch Youth-U12 2024"]
[Site "Willingen"]
[Date "2024.05.25"]
[Round "9"]
[White "Fadeev, Justin Michael"]
[Black "Sasikumar Anitha, Sarvesh"]
[Result "0-1"]
[ECO "C11"]
[WhiteElo "1762"]
[BlackElo "1703"]
[Annotator "NA RC"]
[PlyCount "102"]
[EventDate "2022.06.05"]
[EventType "swiss"]
[EventRounds "9"]
[EventCountry "GER"]
[SourceTitle "playchess.com"]
[Source "ChessBase"]
[SourceQuality "1"]
[TimeControl "40/4500+30:900+30"]

1. e4 {[%emt 0:00:00]} e6 {[%emt 0:00:00]} 2. d4 {[%emt 0:00:00]} d5 {[%emt 0:00:00]} 3. Nc3 {[%emt 0:00:00]} Nf6 {[%emt 0:00:00]} 4. e5 {[%emt 0:00:00]} Nfd7 {[%emt 0:00:00]} 5. f4 {[%emt 0:00:00]} c5 {[%emt 0:00:00]} 6. Nf3 {[%emt 0:00:00]} Nc6 {[%emt 0:00:00]} 7. Be3 {[%emt 0:00:00]} Qb6 {[%emt 0:00:00]} 8. Na4 {[%emt 0:00:00]} Qa5+ {[%emt 0:00:00]} 9. c3 {[%emt 0:00:00]} b6 {[%emt 0:00:00]} 10. Bd2 {[%emt 0:19:49]} c4 {[%emt 0:00:00]} 11. b4 {[%emt 0:01:08]} Nxb4 {[%emt 0:00:23]} 12. cxb4 {[%emt 0:00:52]} Bxb4 {[%emt 0:00:09]} 13. Rc1 {[%emt 0:04:59]} b5 {[%emt 0:03:12]} 14. Bxb4 {[%emt 0:02:52]} Qxb4+ {[%emt 0:00:14]} 15. Nc3 {[%emt 0:00:05]} Qa5 {[%emt 0:07:58]} 16. Be2 {[%emt 0:02:22]} Nb6 {[%emt 0:01:33]} 17. Qd2 {[%emt 0:08:18]} Bd7 {[%emt 0:03:46]} 18. Ne4 {[%emt 0:02:45]} Qxd2+ {[%emt 0:01:24]} 19. Nexd2 {[%emt 0:00:05]} Ke7 {[%emt 0:01:22]} 20. Kf2 {[%emt 0:01:58]} a5 {[%emt 0:01:36]} 21. Rb1 {[%emt 0:04:32]} b4 {[%emt 0:01:20]} 22. Rhc1 {[%emt 0:00:36]} Rhc8 {[%emt 0:01:12]} 23. Bd1 {[%emt 0:03:00]} Rab8 {[%emt 0:02:45]} 24. a3 {[%emt 0:09:14]} b3 {[%emt 0:00:50]} 25. Bxb3 {[%emt 0:00:38]} cxb3 {[%emt 0:00:13]} 26. Rxc8 {[%emt 0:00:13]} Rxc8 {[%emt 0:00:27]} 27. Rxb3 {[%emt 0:01:19]} Nc4 {[%emt 0:00:43]} 28. Nxc4 {[%emt 0:02:21]} Rxc4 {[%emt 0:02:06]} 29. Ke2 {[%emt 0:05:41]} Rc2+ {[%emt 0:00:55]} 30. Nd2 {[%emt 0:00:04]} a4 {[%emt 0:00:12]} 31. Rb4 {[%emt 0:01:03]} Ra2 {[%emt 0:00:21]} 32. Rb7 {[%emt 0:01:30]} Rxa3 {[%emt 0:01:01]} 33. Ra7 {[%emt 0:00:05]} Ra2 {[%emt 0:00:44]} 34. Kd3 {[%emt 0:00:37]} Ra1 {[%emt 0:01:19]} 35. g3 {[%emt 0:02:24]} h6 {[%emt 0:02:24]} 36. Ke2 {[%emt 0:02:42]} Kd8 {[%emt 0:07:34]} 37. Ra8+ {[%emt 0:01:23]} Kc7 {[%emt 0:03:24]} 38. Ra7+ {[%emt 0:00:04]} Kc8 {[%emt 0:00:09]} 39. Kd3 {[%emt 0:01:32]} Rh1 {[%emt 0:04:17]} 40. Nf3 {[%emt 0:01:09]} Rf1 {[%emt 0:01:02]} 41. Ke2 {[%emt 0:18:12]} Bb5+ {[%emt 0:16:01]} 42. Ke3 {[%emt 0:00:05]} Bd7 {[%emt 0:01:02]} 43. Ke2 {[%emt 0:00:21]} Ra1 {[%emt 0:00:10]} 44. Nd2 {[%emt 0:00:25]} Bb5+ {[%emt 0:01:22]} 45. Kf2 {[%emt 0:01:13]} a3 {[%emt 0:00:43]} 46. Nb3 {[%emt 0:02:30]} Ra2+ {[%emt 0:00:14]} 47. Kf3 {[%emt 0:00:16]} Bc4 {[%emt 0:01:02]} 48. Nc5 {[%emt 0:00:40]} Ra1 {[%emt 0:00:54]} 49. Nd7 {[%emt 0:02:30]} a2 {[%emt 0:01:37]} 50. Nb6+ {[%emt 0:01:04]} Kb8 {[%emt 0:00:18]} 51. Ra3 {[%emt 0:00:31]} Rf1+ {[%emt 0:00:13]} 0-1

[Event "GER-ch Youth-U12 2024"]
[Site "Willingen"]
[Date "2024.05.25"]
[Round "9"]
[White "Shevchenko, Igor"]
[Black "Vu Hoang Bach"]
[Result "1/2-1/2"]
[ECO "D36"]
[WhiteElo "1758"]
[BlackElo "1677"]
[Annotator "NA RC"]
[PlyCount "66"]
[EventDate "2022.06.05"]
[EventType "swiss"]
[EventRounds "9"]
[EventCountry "GER"]
[SourceTitle "playchess.com"]
[Source "ChessBase"]
[SourceQuality "1"]
[TimeControl "40/4500+30:900+30"]

1. d4 {[%emt 0:00:00]} Nf6 {[%emt 0:00:00]} 2. c4 {[%emt 0:00:00]} e6 {[%emt 0:00:00]} 3. Nc3 {[%emt 0:00:00]} d5 {[%emt 0:00:00]} 4. cxd5 {[%emt 0:00:00]} exd5 {[%emt 0:00:00]} 5. Bg5 {[%emt 0:00:00]} Be7 {[%emt 0:00:00]} 6. e3 {[%emt 0:00:00]} O-O {[%emt 0:00:00]} 7. Bd3 {[%emt 0:00:24]} c6 {[%emt 0:00:00]} 8. Qc2 {[%emt 0:00:40]} h6 {[%emt 0:00:00]} 9. Bh4 {[%emt 0:00:56]} Re8 {[%emt 0:04:09]} 10. Nf3 {[%emt 0:02:02]} Nbd7 {[%emt 0:00:14]} 11. O-O {[%emt 0:00:08]} Ne4 {[%emt 0:00:53]} 12. Bg3 {[%emt 0:00:17]} Nxg3 {[%emt 0:00:13]} 13. hxg3 {[%emt 0:00:01]} Nf6 {[%emt 0:02:27]} 14. Rab1 {[%emt 0:00:54]} Be6 {[%emt 0:03:00]} 15. b4 {[%emt 0:00:52]} Rc8 {[%emt 0:01:22]} 16. a4 {[%emt 0:06:08]} Bd6 {[%emt 0:08:38]} 17. Rfc1 {[%emt 0:04:07]} Qe7 {[%emt 0:00:11]} 18. b5 {[%emt 0:03:56]} c5 {[%emt 0:00:14]} 19. Qd1 {[%emt 0:11:19]} c4 {[%emt 0:01:56]} 20. Bf1 {[%emt 0:14:52]} Ba3 {[%emt 0:00:07]} 21. Ne5 {[%emt 0:02:36]} Bxc1 {[%emt 0:00:12]} 22. Rxc1 {[%emt 0:00:24]} Nd7 {[%emt 0:00:48]} 23. f4 {[%emt 0:02:45]} Nxe5 {[%emt 0:00:45]} 24. dxe5 {[%emt 0:00:08]} Qc5 {[%emt 0:00:07]} 25. Kf2 {[%emt 0:02:53]} Red8 {[%emt 0:01:37]} 26. Qd4 {[%emt 0:01:09]} b6 {[%emt 0:02:38]} 27. Be2 {[%emt 0:00:28]} g5 {[%emt 0:22:52]} 28. Rd1 {[%emt 0:00:25]} g4 {[%emt 0:01:47]} 29. Rh1 {[%emt 0:00:26]} Qxd4 {[%emt 0:02:47]} 30. exd4 {[%emt 0:00:01]} Kh7 {[%emt 0:01:16]} 31. Bd1 {[%emt 0:00:30]} Bf5 {[%emt 0:00:48]} 32. Rh4 {[%emt 0:00:07]} Rg8 {[%emt 0:01:29]} 33. Ke3 Rcd8 {[%emt 0:00:30]} 1/2-1/2